[Event "Mistrovství Čech mládeže 2023 - HD14"]
[Site "Harrachov, Czech Republic"]
[Date "2023.10.22"]
[Round "2.9"]
[White "Chernyy, Andrey"]
[Black "Malý, Jiří"]
[Result "0-1"]
[TimeControl "90m + 30s"]
[WhiteElo "1655"]
[BlackElo "1490"]

1. e4 {[%clk 01:30:57]} {[%emt 00:00:03]} e5 {[%clk 01:30:47]} {[%emt
00:00:14]} 2. Nf3 {[%clk 01:31:21]} {[%emt 00:00:05]} Nf6 {[%clk 01:30:49]}
{[%emt 00:00:28]} 3. Nxe5 {[%clk 01:31:43]} {[%emt 00:00:07]} d6 {[%clk
01:31:11]} {[%emt 00:00:09]} 4. Nf3 {[%clk 01:32:10]} {[%emt 00:00:03]} Nxe4
{[%clk 01:31:18]} {[%emt 00:00:24]} 5. d4 {[%clk 01:31:54]} {[%emt 00:00:46]}
d5 {[%clk 01:31:35]} {[%emt 00:00:12]} 6. Bd3 {[%clk 01:32:19]} {[%emt
00:00:05]} Bf5 {[%clk 01:31:24]} {[%emt 00:00:42]} 7. O-O {[%clk 01:32:03]}
{[%emt 00:00:46]} Be7 {[%clk 01:30:57]} {[%emt 00:00:57]} 8. Re1 {[%clk
01:31:37]} {[%emt 00:00:56]} O-O {[%clk 01:30:35]} {[%emt 00:00:51]} 9. c4
{[%clk 01:31:37]} {[%emt 00:00:30]} c6 {[%clk 01:23:16]} {[%emt 00:07:49]} 10.
Nc3 {[%clk 01:31:00]} {[%emt 00:01:05]} Nxc3 {[%clk 01:21:45]} {[%emt
00:02:03]} 11. bxc3 {[%clk 01:31:21]} {[%emt 00:00:09]} Bxd3 {[%clk 01:21:20]}
{[%emt 00:00:55]} 12. Qxd3 {[%clk 01:31:40]} {[%emt 00:00:11]} Nd7 {[%clk
01:20:03]} {[%emt 00:01:47]} 13. Rb1 {[%clk 01:27:47]} {[%emt 00:04:22]} b6
{[%clk 01:09:36]} {[%emt 00:10:59]} 14. cxd5 {[%clk 01:25:35]} {[%emt
00:02:41]} cxd5 {[%clk 01:09:24]} {[%emt 00:00:42]} 15. Ne5 {[%clk 01:23:10]}
{[%emt 00:02:54]} Bd6 {[%clk 00:56:16]} {[%emt 00:13:38]} 16. Qf5 {[%clk
01:08:46]} {[%emt 00:14:54]} Nxe5 {[%clk 00:44:51]} {[%emt 00:11:55]} 17. dxe5
{[%clk 01:09:07]} {[%emt 00:00:09]} Bc5 {[%clk 00:44:37]} {[%emt 00:00:44]} 18.
Be3 {[%clk 01:09:07]} {[%emt 00:00:30]} Qc8 {[%clk 00:35:47]} {[%emt 00:09:20]}
19. Qf3 {[%clk 01:05:47]} {[%emt 00:03:49]} Rd8 {[%clk 00:29:34]} {[%emt
00:06:44]} 20. Rbd1 {[%clk 01:05:14]} {[%emt 00:01:03]} Qe6 {[%clk 00:27:10]}
{[%emt 00:02:55]} 21. Bd4 {[%clk 01:04:17]} {[%emt 00:01:26]} Rac8 {[%clk
00:26:06]} {[%emt 00:01:35]} 22. Re2 {[%clk 01:00:05]} {[%emt 00:04:41]} Bxd4
{[%clk 00:23:55]} {[%emt 00:02:41]} 23. Rxd4 {[%clk 00:58:57]} {[%emt
00:01:38]} Rc5 {[%clk 00:22:57]} {[%emt 00:01:28]} 24. Qe3 {[%clk 00:56:38]}
{[%emt 00:02:49]} Qc6 {[%clk 00:19:45]} {[%emt 00:03:42]} 25. Rc2 {[%clk
00:52:28]} {[%emt 00:04:39]} Rc8 {[%clk 00:18:35]} {[%emt 00:01:40]} 26. Rd3
{[%clk 00:51:08]} {[%emt 00:01:50]} h6 {[%clk 00:14:38]} {[%emt 00:04:28]} 27.
h3 {[%clk 00:46:25]} {[%emt 00:05:12]} Qa4 {[%clk 00:11:10]} {[%emt 00:03:59]}
28. Qd2 {[%clk 00:43:40]} {[%emt 00:03:15]} Qc6 {[%clk 00:11:24]} {[%emt
00:00:16]} 29. Rc1 {[%clk 00:38:03]} {[%emt 00:06:07]} Rc7 {[%clk 00:11:03]}
{[%emt 00:00:52]} 30. Rd1 {[%clk 00:33:34]} {[%emt 00:04:58]} Rd7 {[%clk
00:11:04]} {[%emt 00:00:29]} 31. f4 {[%clk 00:28:47]} {[%emt 00:05:17]} Ra5
{[%clk 00:08:21]} {[%emt 00:03:14]} 32. f5 {[%clk 00:17:54]} {[%emt 00:11:22]}
Qc4 {[%clk 00:07:18]} {[%emt 00:01:33]} 33. Rg3 {[%clk 00:14:18]} {[%emt
00:04:05]} Kh7 {[%clk 00:05:45]} {[%emt 00:02:04]} 34. e6 {[%clk 00:09:42]}
{[%emt 00:05:06]} fxe6 {[%clk 00:05:53]} {[%emt 00:00:22]} 35. fxe6 {[%clk
00:08:08]} {[%emt 00:02:04]} Re7 {[%clk 00:05:54]} {[%emt 00:00:29]} 36. Rg4
{[%clk 00:03:01]} {[%emt 00:05:36]} Qc5+ {[%clk 00:03:45]} {[%emt 00:02:39]} 37.
Kh1 {[%clk 00:03:19]} {[%emt 00:00:10]} Rxe6 {[%clk 00:03:22]} {[%emt
00:00:55]} 38. Qd3+ {[%clk 00:03:17]} {[%emt 00:00:32]} Kh8 {[%clk 00:03:33]}
{[%emt 00:00:19]} 39. Qf5 {[%clk 00:03:10]} {[%emt 00:00:35]} Qe7 {[%clk
00:03:16]} {[%emt 00:00:49]} 40. Rg6 {[%clk 00:01:34]} {[%emt 00:02:06]} Rxg6
{[%clk 00:02:27]} {[%emt 00:01:19]} 41. Qxg6 {[%clk 00:02:00]} {[%emt
00:00:04]} Rxa2 {[%clk 00:01:57]} {[%emt 00:00:59]} 42. Rf1 {[%clk 00:00:39]}
{[%emt 00:01:52]} Re2 {[%clk 00:01:07]} {[%emt 00:01:20]} 43. Qg3 {[%clk
00:00:37]} {[%emt 00:00:31]} Re6 {[%clk 00:01:09]} {[%emt 00:00:29]} 44. h4
{[%clk 00:00:43]} {[%emt 00:00:24]} Qd6 {[%clk 00:01:14]} {[%emt 00:00:25]} 45.
Qg4 {[%clk 00:00:51]} {[%emt 00:00:22]} Qe7 {[%clk 00:01:19]} {[%emt 00:00:25]}
46. Qg3 {[%clk 00:01:13]} {[%emt 00:00:08]} Re3 {[%clk 00:01:09]} {[%emt
00:00:40]} 47. Qf2 {[%clk 00:01:03]} {[%emt 00:00:41]} Re4 {[%clk 00:01:24]}
{[%emt 00:00:14]} 48. Qf5 {[%clk 00:00:55]} {[%emt 00:00:38]} Rxh4+ {[%clk
00:01:30]} {[%emt 00:00:24]} 49. Kg1 {[%clk 00:01:18]} {[%emt 00:00:07]} Qc5+
{[%clk 00:01:46]} {[%emt 00:00:14]} 50. Rf2 {[%clk 00:01:36]} {[%emt 00:00:12]}
Ra4 {[%clk 00:01:47]} {[%emt 00:00:25]} 51. Kh2 {[%clk 00:01:03]} {[%emt
00:01:06]} Qd6+ {[%clk 00:02:00]} {[%emt 00:00:17]} 52. g3 {[%clk 00:01:07]}
{[%emt 00:00:26]} Rc4 {[%clk 00:02:15]} {[%emt 00:00:15]} 53. Re2 {[%clk
00:01:01]} {[%emt 00:00:37]} Re4 {[%clk 00:01:36]} {[%emt 00:01:08]} 54. Rf2
{[%clk 00:00:55]} {[%emt 00:00:36]} Re5 {[%clk 00:01:18]} {[%emt 00:00:48]} 55.
Qc8+ {[%clk 00:00:37]} {[%emt 00:00:48]} Kh7 {[%clk 00:01:43]} {[%emt
00:00:05]} 56. Qg4 {[%clk 00:00:51]} {[%emt 00:00:16]} Rg5 {[%clk 00:01:47]}
{[%emt 00:00:26]} 57. Qf3 {[%clk 00:01:10]} {[%emt 00:00:11]} Qg6 {[%clk
00:01:21]} {[%emt 00:00:57]} 58. Qe3 {[%clk 00:01:23]} {[%emt 00:00:16]} Rh5+
{[%clk 00:01:27]} {[%emt 00:00:24]} 59. Kg1 {[%clk 00:01:17]} {[%emt 00:00:36]}
Qb1+ {[%clk 00:01:40]} {[%emt 00:00:17]} 60. Rf1 {[%clk 00:01:31]} {[%emt
00:00:16]} Rh1+ {[%clk 00:01:48]} {[%emt 00:00:22]} 61. Kxh1 {[%clk 00:01:42]}
{[%emt 00:00:19]} Qxf1+ {[%clk 00:02:11]} {[%emt 00:00:07]} 62. Kh2 {[%clk
00:02:07]} {[%emt 00:00:05]} Qf5 {[%clk 00:02:15]} {[%emt 00:00:25]} 63. Qd4
{[%clk 00:02:17]} {[%emt 00:00:19]} Qe4 {[%clk 00:02:14]} {[%emt 00:00:32]} 64.
Qf2 {[%clk 00:02:32]} {[%emt 00:00:15]} Qd3 {[%clk 00:02:16]} {[%emt 00:00:30]}
65. Kg1 {[%clk 00:02:26]} {[%emt 00:00:35]} Qd1+ {[%clk 00:02:03]} {[%emt
00:00:43]} 66. Kg2 {[%clk 00:02:40]} {[%emt 00:00:14]} Qd3 {[%clk 00:02:23]}
{[%emt 00:00:12]} 67. Kg1 {[%clk 00:03:01]} {[%emt 00:00:08]} Kg8 {[%clk
00:02:23]} {[%emt 00:00:32]} 68. Qf4 {[%clk 00:02:43]} {[%emt 00:00:48]} Qd1+
{[%clk 00:02:00]} {[%emt 00:00:52]} 69. Kg2 {[%clk 00:02:59]} {[%emt 00:00:15]}
Qc2+ {[%clk 00:02:15]} {[%emt 00:00:15]} 70. Kg1 {[%clk 00:03:22]} {[%emt
00:00:06]} Kh7 {[%clk 00:01:54]} {[%emt 00:00:51]} 71. Qf3 {[%clk 00:03:28]}
{[%emt 00:00:24]} Qe4 {[%clk 00:02:11]} {[%emt 00:00:13]} 72. Qf2 {[%clk
00:03:27]} {[%emt 00:00:31]} Kg8 {[%clk 00:02:14]} {[%emt 00:00:28]} 73. Kh2
{[%clk 00:02:22]} {[%emt 00:01:34]} Qc4 {[%clk 00:02:07]} {[%emt 00:00:38]} 74.
Qf5 {[%clk 00:01:36]} {[%emt 00:01:16]} d4 {[%clk 00:02:03]} {[%emt 00:00:34]}
75. cxd4 {[%clk 00:01:49]} {[%emt 00:00:17]} Qxd4 {[%clk 00:01:09]} {[%emt
00:01:24]} 76. Qc8+ {[%clk 00:01:41]} {[%emt 00:00:38]} Kh7 {[%clk 00:01:25]}
{[%emt 00:00:15]} 77. Qf5+ {[%clk 00:01:51]} {[%emt 00:00:19]} g6 {[%clk
00:01:44]} {[%emt 00:00:11]} 78. Qf7+ {[%clk 00:02:15]} {[%emt 00:00:04]} Qg7
{[%clk 00:02:10]} {[%emt 00:00:06]} 79. Qe6 {[%clk 00:02:35]} {[%emt 00:00:09]}
Qc7 {[%clk 00:02:15]} {[%emt 00:00:26]} 80. Kh3 {[%clk 00:02:57]} {[%emt
00:00:08]} a5 {[%clk 00:02:28]} {[%emt 00:00:18]} 81. g4 {[%clk 00:03:14]}
{[%emt 00:00:12]} b5 {[%clk 00:02:32]} {[%emt 00:00:26]} 82. Qd5 {[%clk
00:03:33]} {[%emt 00:00:11]} b4 {[%clk 00:02:44]} {[%emt 00:00:19]} 83. Qb5
{[%clk 00:03:46]} {[%emt 00:00:17]} Qc3+ {[%clk 00:02:23]} {[%emt 00:00:51]} 84.
Kh4 {[%clk 00:04:06]} {[%emt 00:00:08]} g5+ {[%clk 00:02:28]} {[%emt 00:00:26]}
0-1

[Event "Mistrovství Čech mládeže 2023 - HD14"]
[Site "Harrachov, Czech Republic"]
[Date "2023.10.22"]
[Round "2.10"]
[White "Holeš, Vojta"]
[Black "Švadlenka, Michal"]
[Result "0-1"]
[TimeControl "90m + 30s"]
[WhiteElo "1440"]
[BlackElo "1651"]

1. e4 {[%clk 01:30:58]} {[%emt 00:00:02]} c5 {[%clk 01:30:56]} {[%emt
00:00:05]} 2. Nf3 {[%clk 01:31:23]} {[%emt 00:00:05]} d6 {[%clk 01:31:23]}
{[%emt 00:00:03]} 3. d4 {[%clk 01:31:48]} {[%emt 00:00:05]} cxd4 {[%clk
01:31:50]} {[%emt 00:00:03]} 4. Nxd4 {[%clk 01:32:14]} {[%emt 00:00:05]} Nf6
{[%clk 01:32:16]} {[%emt 00:00:03]} 5. Nc3 {[%clk 01:32:38]} {[%emt 00:00:06]}
g6 {[%clk 01:32:43]} {[%emt 00:00:03]} 6. Be3 {[%clk 01:32:54]} {[%emt
00:00:14]} Bg7 {[%clk 01:33:05]} {[%emt 00:00:08]} 7. f3 {[%clk 01:33:18]}
{[%emt 00:00:05]} O-O {[%clk 01:33:30]} {[%emt 00:00:05]} 8. Qd2 {[%clk
01:33:45]} {[%emt 00:00:04]} Nc6 {[%clk 01:33:52]} {[%emt 00:00:07]} 9. O-O-O
{[%clk 01:33:57]} {[%emt 00:00:18]} d5 {[%clk 01:33:49]} {[%emt 00:00:33]} 10.
Bb5 {[%clk 01:30:23]} {[%emt 00:04:03]} Nxd4 {[%clk 01:17:25]} {[%emt
00:16:54]} 11. Bxd4 {[%clk 01:26:40]} {[%emt 00:04:13]} dxe4 {[%clk 01:15:19]}
{[%emt 00:02:36]} 12. Bxf6 {[%clk 01:22:58]} {[%emt 00:04:12]} Qxd2+ {[%clk
01:15:15]} {[%emt 00:00:34]} 13. Rxd2 {[%clk 01:23:09]} {[%emt 00:00:19]} exf6
{[%clk 01:11:10]} {[%emt 00:04:36]} 14. Rf2 {[%clk 01:14:31]} {[%emt 00:09:07]}
exf3 {[%clk 01:03:53]} {[%emt 00:07:47]} 15. gxf3 {[%clk 01:11:44]} {[%emt
00:03:17]} a6 {[%clk 00:58:37]} {[%emt 00:05:46]} 16. Bd3 {[%clk 01:11:15]}
{[%emt 00:00:59]} Be6 {[%clk 00:54:19]} {[%emt 00:04:48]} 17. h4 {[%clk
01:10:53]} {[%emt 00:00:53]} f5 {[%clk 00:53:52]} {[%emt 00:00:58]} 18. a3
{[%clk 01:08:39]} {[%emt 00:02:45]} Rfd8 {[%clk 00:52:19]} {[%emt 00:02:02]} 19.
Ne2 {[%clk 01:07:33]} {[%emt 00:01:35]} Rac8 {[%clk 00:52:14]} {[%emt
00:00:35]} 20. Kb1 {[%clk 01:06:30]} {[%emt 00:01:34]} Bc4 {[%clk 00:49:59]}
{[%emt 00:02:45]} 21. Bxc4 {[%clk 01:06:25]} {[%emt 00:00:34]} Rxc4 {[%clk
00:50:26]} {[%emt 00:00:03]} 22. Rg2 {[%clk 01:05:47]} {[%emt 00:01:09]} Rd2
{[%clk 00:50:25]} {[%emt 00:00:31]} 23. c3 {[%clk 01:03:11]} {[%emt 00:03:06]}
h5 {[%clk 00:47:44]} {[%emt 00:03:11]} 24. Kc1 {[%clk 01:01:41]} {[%emt
00:02:01]} Bh6 {[%clk 00:46:28]} {[%emt 00:01:45]} 25. f4 {[%clk 01:00:48]}
{[%emt 00:01:23]} Rxf4 {[%clk 00:39:10]} {[%emt 00:07:48]} 26. Kxd2 {[%clk
00:59:10]} {[%emt 00:02:08]} Rxh4+ {[%clk 00:38:19]} {[%emt 00:01:21]} 0-1

[Event "Mistrovství Čech mládeže 2023 - HD14"]
[Site "Harrachov, Czech Republic"]
[Date "2023.10.22"]
[Round "2.11"]
[White "Ježek, Jakub"]
[Black "Hrdlička, Jan"]
[Result "1-0"]
[TimeControl "90m + 30s"]
[WhiteElo "1642"]
[BlackElo "1418"]

1. e4 {[%clk 01:30:57]} {[%emt 00:00:02]} c5 {[%clk 01:30:50]} {[%emt
00:00:11]} 2. Nf3 {[%clk 01:31:25]} {[%emt 00:00:02]} d6 {[%clk 01:31:10]}
{[%emt 00:00:10]} 3. d4 {[%clk 01:31:53]} {[%emt 00:00:02]} cxd4 {[%clk
01:31:18]} {[%emt 00:00:22]} 4. Qxd4 {[%clk 01:32:20]} {[%emt 00:00:03]} Nc6
{[%clk 01:30:38]} {[%emt 00:01:09]} 5. Bb5 {[%clk 01:32:45]} {[%emt 00:00:05]}
Bd7 {[%clk 01:29:42]} {[%emt 00:01:26]} 6. Bxc6 {[%clk 01:33:09]} {[%emt
00:00:06]} Bxc6 {[%clk 01:29:31]} {[%emt 00:00:41]} 7. Nc3 {[%clk 01:33:27]}
{[%emt 00:00:11]} Nf6 {[%clk 01:28:29]} {[%emt 00:01:32]} 8. Bg5 {[%clk
01:33:50]} {[%emt 00:00:07]} g6 {[%clk 01:21:00]} {[%emt 00:08:00]} 9. Bxf6
{[%clk 01:33:52]} {[%emt 00:00:27]} exf6 {[%clk 01:20:03]} {[%emt 00:01:27]} 10.
O-O-O {[%clk 01:33:42]} {[%emt 00:00:40]} Be7 {[%clk 01:15:20]} {[%emt
00:05:13]} 11. Rhe1 {[%clk 01:30:58]} {[%emt 00:03:13]} O-O {[%clk 01:14:20]}
{[%emt 00:01:29]} 12. Nd5 {[%clk 01:27:31]} {[%emt 00:03:58]} Bxd5 {[%clk
01:05:23]} {[%emt 00:09:27]} 13. Qxd5 {[%clk 01:27:36]} {[%emt 00:00:23]} Qc7
{[%clk 01:00:51]} {[%emt 00:05:04]} 14. Nd4 {[%clk 01:21:36]} {[%emt 00:06:29]}
a6 {[%clk 00:59:25]} {[%emt 00:01:58]} 15. Rd3 {[%clk 01:20:45]} {[%emt
00:01:20]} Rac8 {[%clk 00:52:18]} {[%emt 00:07:37]} 16. h4 {[%clk 01:17:07]}
{[%emt 00:04:08]} Qd7 {[%clk 00:49:27]} {[%emt 00:03:20]} 17. Nb3 {[%clk
00:53:36]} {[%emt 00:23:58]} Rc7 {[%clk 00:47:56]} {[%emt 00:02:05]} 18. Rg3
{[%clk 00:47:31]} {[%emt 00:06:34]} Rfc8 {[%clk 00:47:15]} {[%emt 00:01:10]} 19.
c3 {[%clk 00:47:17]} {[%emt 00:00:44]} Qe6 {[%clk 00:36:48]} {[%emt 00:10:57]}
20. Nd4 {[%clk 00:42:53]} {[%emt 00:04:55]} Qd7 {[%clk 00:32:57]} {[%emt
00:04:19]} 21. Nf5 {[%clk 00:38:54]} {[%emt 00:04:30]} Bf8 {[%clk 00:31:01]}
{[%emt 00:02:25]} 22. h5 {[%clk 00:35:29]} {[%emt 00:03:55]} Qe6 {[%clk
00:17:59]} {[%emt 00:13:32]} 23. hxg6 {[%clk 00:31:40]} {[%emt 00:04:19]} Qxd5
{[%clk 00:17:48]} {[%emt 00:00:41]} 24. gxh7+ {[%clk 00:31:37]} {[%emt
00:00:33]} Kh8 {[%clk 00:17:43]} {[%emt 00:00:36]} 25. exd5 {[%clk 00:31:46]}
{[%emt 00:00:21]} Rc5 {[%clk 00:09:50]} {[%emt 00:08:22]} 26. Rg8+ {[%clk
00:31:28]} {[%emt 00:00:47]} Kxh7 {[%clk 00:10:11]} {[%emt 00:00:10]} 27. Rg3
{[%clk 00:31:10]} {[%emt 00:00:48]} Bh6+ {[%clk 00:09:27]} {[%emt 00:01:14]} 28.
Nxh6 {[%clk 00:31:32]} {[%emt 00:00:08]} 1-0

[Event "Mistrovství Čech mládeže 2023 - HD14"]
[Site "Harrachov, Czech Republic"]
[Date "2023.10.22"]
[Round "2.12"]
[White "Tejnor, Martin"]
[Black "Rudlof, Adam"]
[Result "1-0"]
[TimeControl "90m + 30s"]
[WhiteElo "1418"]
[BlackElo "1639"]

1. e4 {[%clk 01:30:59]} c5 {[%clk 01:30:48]} {[%emt 00:00:12]} 2. Nf3 {[%clk
01:31:25]} {[%emt 00:00:04]} Nc6 {[%clk 01:31:13]} {[%emt 00:00:05]} 3. d4
{[%clk 01:31:51]} {[%emt 00:00:04]} cxd4 {[%clk 01:31:38]} {[%emt 00:00:05]} 4.
Nxd4 {[%clk 01:32:13]} {[%emt 00:00:08]} Nf6 {[%clk 01:32:03]} {[%emt
00:00:04]} 5. Nc3 {[%clk 01:32:34]} {[%emt 00:00:09]} d6 {[%clk 01:32:26]}
{[%emt 00:00:07]} 6. Be2 {[%clk 01:31:59]} {[%emt 00:01:05]} g6 {[%clk
01:32:10]} {[%emt 00:00:47]} 7. Be3 {[%clk 01:31:25]} {[%emt 00:01:03]} Bg7
{[%clk 01:32:31]} {[%emt 00:00:09]} 8. O-O {[%clk 01:31:24]} {[%emt 00:00:31]}
O-O {[%clk 01:32:50]} {[%emt 00:00:11]} 9. Kh1 {[%clk 01:22:21]} {[%emt
00:09:33]} Bd7 {[%clk 01:32:06]} {[%emt 00:01:14]} 10. h3 {[%clk 01:15:44]}
{[%emt 00:07:08]} a6 {[%clk 01:27:09]} {[%emt 00:05:26]} 11. Qd2 {[%clk
01:14:47]} {[%emt 00:01:28]} b5 {[%clk 01:22:04]} {[%emt 00:05:33]} 12. a3
{[%clk 01:13:48]} {[%emt 00:01:29]} Rc8 {[%clk 01:21:39]} {[%emt 00:00:54]} 13.
f4 {[%clk 01:11:42]} {[%emt 00:02:37]} Qc7 {[%clk 01:18:51]} {[%emt 00:03:15]}
14. Bf3 {[%clk 01:12:00]} {[%emt 00:00:15]} Nxd4 {[%clk 01:16:52]} {[%emt
00:02:29]} 15. Bxd4 {[%clk 01:11:33]} {[%emt 00:00:57]} Bc6 {[%clk 01:15:37]}
{[%emt 00:01:44]} 16. Rfe1 {[%clk 01:08:50]} {[%emt 00:03:13]} Qb7 {[%clk
01:13:10]} {[%emt 00:02:56]} 17. Rad1 {[%clk 01:07:14]} {[%emt 00:02:08]} Rfd8
{[%clk 01:09:44]} {[%emt 00:03:55]} 18. Qf2 {[%clk 01:05:39]} {[%emt 00:02:06]}
Nd7 {[%clk 01:06:37]} {[%emt 00:03:37]} 19. Na2 {[%clk 00:57:04]} {[%emt
00:09:06]} Bxd4 {[%clk 00:59:32]} {[%emt 00:07:34]} 20. Qxd4 {[%clk 00:56:00]}
{[%emt 00:01:34]} a5 {[%clk 00:59:51]} {[%emt 00:00:11]} 21. Qd2 {[%clk
00:54:25]} {[%emt 00:02:05]} Nc5 {[%clk 00:56:16]} {[%emt 00:04:05]} 22. Nc3
{[%clk 00:53:35]} {[%emt 00:01:20]} f5 {[%clk 00:43:09]} {[%emt 00:13:37]} 23.
Nd5 {[%clk 00:47:59]} {[%emt 00:06:06]} fxe4 {[%clk 00:25:58]} {[%emt
00:17:42]} 24. Bxe4 {[%clk 00:48:19]} {[%emt 00:00:10]} Nxe4 {[%clk 00:26:14]}
{[%emt 00:00:15]} 25. Rxe4 {[%clk 00:48:31]} {[%emt 00:00:16]} Bxd5 {[%clk
00:26:27]} {[%emt 00:00:19]} 26. Qxd5+ {[%clk 00:48:49]} {[%emt 00:00:12]} Qxd5
{[%clk 00:26:52]} {[%emt 00:00:04]} 27. Rxd5 {[%clk 00:49:15]} {[%emt
00:00:04]} Rc5 {[%clk 00:26:23]} {[%emt 00:00:59]} 28. Red4 {[%clk 00:48:43]}
{[%emt 00:01:02]} Rdc8 {[%clk 00:25:54]} {[%emt 00:00:58]} 29. c3 {[%clk
00:48:26]} {[%emt 00:00:48]} Kf7 {[%clk 00:25:15]} {[%emt 00:01:07]} 30. Kg1
{[%clk 00:48:05]} {[%emt 00:00:52]} R8c7 {[%clk 00:13:05]} {[%emt 00:12:41]} 31.
Kf2 {[%clk 00:47:49]} {[%emt 00:00:46]} Ke6 {[%clk 00:13:29]} {[%emt 00:00:06]}
32. Rxc5 {[%clk 00:47:52]} {[%emt 00:00:27]} dxc5 {[%clk 00:12:16]} {[%emt
00:01:44]} 33. Rd3 {[%clk 00:47:20]} {[%emt 00:01:02]} b4 {[%clk 00:06:44]}
{[%emt 00:06:02]} 34. c4 {[%clk 00:46:27]} {[%emt 00:01:23]} Rd7 {[%clk
00:03:37]} {[%emt 00:03:36]} 35. Rxd7 {[%clk 00:46:45]} {[%emt 00:00:12]} Kxd7
{[%clk 00:04:03]} {[%emt 00:00:05]} 36. Ke3 {[%clk 00:47:09]} {[%emt 00:00:06]}
Kd6 {[%clk 00:04:22]} {[%emt 00:00:10]} 37. Ke4 {[%clk 00:47:02]} {[%emt
00:00:38]} h6 {[%clk 00:01:18]} {[%emt 00:03:34]} 38. a4 {[%clk 00:36:01]}
{[%emt 00:11:30]} h5 {[%clk 00:00:39]} {[%emt 00:01:09]} 39. g4 {[%clk
00:35:55]} {[%emt 00:00:35]} h4 {[%clk 00:00:34]} {[%emt 00:00:36]} 40. f5
{[%clk 00:34:33]} {[%emt 00:01:51]} gxf5+ {[%clk 00:00:35]} {[%emt 00:00:30]}
41. Kxf5 {[%clk 00:34:10]} {[%emt 00:00:53]} e6+ {[%clk 00:00:53]} {[%emt
00:00:12]} 42. Kf6 {[%clk 00:34:25]} {[%emt 00:00:15]} e5 {[%clk 00:01:14]}
{[%emt 00:00:09]} 43. Kf5 {[%clk 00:34:25]} {[%emt 00:00:29]} e4 {[%clk
00:01:23]} {[%emt 00:00:22]} 44. Kxe4 {[%clk 00:34:41]} {[%emt 00:00:14]} Ke6
{[%clk 00:01:50]} {[%emt 00:00:03]} 45. b3 {[%clk 00:34:53]} {[%emt 00:00:18]}
1-0

[Event "Mistrovství Čech mládeže 2023 - HD14"]
[Site "Harrachov, Czech Republic"]
[Date "2023.10.22"]
[Round "2.13"]
[White "Jakubše, Tamae Severína"]
[Black "Jun, Rostislav"]
[Result "1-0"]
[TimeControl "90m + 30s"]
[WhiteElo "1627"]
[BlackElo "1360"]

1. e4 {[%clk 01:30:57]} {[%emt 00:00:02]} c5 {[%clk 01:30:19]} {[%emt
00:00:41]} 2. c3 {[%clk 01:31:22]} {[%emt 00:00:06]} e5 {[%clk 01:29:25]}
{[%emt 00:01:24]} 3. Nf3 {[%clk 01:31:44]} {[%emt 00:00:07]} d6 {[%clk
01:28:30]} {[%emt 00:01:25]} 4. Bc4 {[%clk 01:31:20]} {[%emt 00:00:52]} Be6
{[%clk 01:26:26]} {[%emt 00:02:37]} 5. Bxe6 {[%clk 01:30:21]} {[%emt 00:01:29]}
fxe6 {[%clk 01:26:53]} {[%emt 00:00:03]} 6. Qb3 {[%clk 01:30:19]} {[%emt
00:00:30]} Qc8 {[%clk 01:26:43]} {[%emt 00:00:42]} 7. Ng5 {[%clk 01:28:02]}
{[%emt 00:02:46]} c4 {[%clk 01:27:03]} {[%emt 00:00:12]} 8. Qb5+ {[%clk
01:28:16]} {[%emt 00:00:14]} Ke7 {[%clk 01:23:39]} {[%emt 00:03:55]} 9. Na3
{[%clk 01:25:47]} {[%emt 00:02:59]} h6 {[%clk 01:21:42]} {[%emt 00:02:27]} 10.
Nf3 {[%clk 01:24:49]} {[%emt 00:01:28]} Nf6 {[%clk 01:21:33]} {[%emt 00:00:39]}
11. Nxc4 {[%clk 01:22:17]} {[%emt 00:03:01]} Nxe4 {[%clk 01:18:39]} {[%emt
00:03:25]} 12. d4 {[%clk 01:19:14]} {[%emt 00:03:32]} exd4 {[%clk 01:12:16]}
{[%emt 00:06:53]} 13. Nh4 {[%clk 01:15:42]} {[%emt 00:04:01]} Kf6 {[%clk
01:06:54]} {[%emt 00:05:53]} 14. Na5 {[%clk 01:10:10]} {[%emt 00:06:03]} b6
{[%clk 01:04:07]} {[%emt 00:03:17]} 15. Qd3 {[%clk 01:07:06]} {[%emt 00:03:29]}
g5 {[%clk 00:58:16]} {[%emt 00:06:24]} 16. Qxd4+ {[%clk 01:01:27]} {[%emt
00:06:09]} e5 {[%clk 00:58:33]} {[%emt 00:00:13]} 17. Qxe4 {[%clk 01:01:29]}
{[%emt 00:00:29]} bxa5 {[%clk 00:58:16]} {[%emt 00:00:47]} 18. Qxa8 {[%clk
01:00:07]} {[%emt 00:01:51]} gxh4 {[%clk 00:58:44]} {[%emt 00:00:03]} 19. Be3
{[%clk 00:56:56]} {[%emt 00:03:40]} Be7 {[%clk 00:56:40]} {[%emt 00:02:35]} 20.
O-O-O {[%clk 00:55:29]} {[%emt 00:01:57]} Qe6 {[%clk 00:53:44]} {[%emt
00:03:26]} 21. Bxa7 {[%clk 00:51:14]} {[%emt 00:04:46]} 1-0